Cogmind - Beta 17 @@@ ROGUE MODE // 2026.08.18 @ 15:56:34 Player: Kurtsderlind Result: Self-destructed Performance ------------- Evolutions (1) 500 Regions Visited (2) 400 Robots Destroyed (41) 205 Value Destroyed (775) 775 Prototype IDs (0) 0 Alien Tech Used (0) 0 Bonus (0) 0 TOTAL SCORE: 1880 Bonus ------- None Cogmind --------- Core Integrity 215/400 Matter 234/300 Energy 100/100 System Corruption 0% Temperature Cool (6) Movement Treading (240) Ox1 Location -9/Materials Parts ------- > --- POWER (1) -------- (None) > --- PROPULSION (2) --- Light Treads > --- UTILITY (4) ------ Large Storage Unit Transport Network Coupler Improved Targeting Computer > --- WEAPON (2) ------- Particle Gun > --- INVENTORY (15) --- Light Nuclear Core Improved Heat Sink Small Storage Unit Hardened Light Armor Plating Datajack Peak State ------------ > --- POWER ------------ Ion Engine > --- PROPULSION ------- Light Treads Light Treads > --- UTILITY ---------- Small Storage Unit Terrain Scanner Transport Network Coupler Improved Targeting Computer > --- WEAPON ----------- Medium Laser Assault Rifle > --- INVENTORY -------- Light Nuclear Core Light Treads Improved Heat Sink Hardened Light Armor Plating Datajack [Rating: 11] Favorites ----------- Power Ion Engine Engine Ion Engine Propulsion Light Treads Treads Light Treads Utility Small Storage Unit Device Terrain Scanner Storage Small Storage Unit Processor Transport Network Coupler Weapon Assault Rifle Energy Gun Medium Laser Ballistic Gun Assault Rifle Launcher Grenade Launcher Special Melee Weapon Datajack Build | -11 -10 -9 ------- Run | Yrd Mat Mat Slots Evolved 2 | . . 2 Power . | . . . Propulsion . | . . . Utility 2 | . . 2 Weapon . | . . . Parts Attached 19 | 6 8 5 Power 2 | 1 1 . Engine 2 | 1 1 . Core . | . . . Reactor . | . . . Propulsion 3 | 2 . 1 Treads 3 | 2 . 1 Leg . | . . . Wheel . | . . . Hover . | . . . Flight . | . . . Utility 7 | 1 3 3 Device 3 | . 3 . Storage 2 | 1 . 1 Processor 2 | . . 2 Hackware . | . . . Protection . | . . . Artifact . | . . . Weapon 7 | 2 4 1 Energy Gun 3 | . 2 1 Energy Cannon . | . . . Ballistic Gun 2 | 2 . . Ballistic Cannon . | . . . Launcher 1 | . 1 . Special Weapon . | . . . Impact Weapon . | . . . Slashing Weapon . | . . . Piercing Weapon . | . . . Special Melee Weapon 1 | . 1 . Unidentified Prototypes . | . . . Parts Lost 7 | . 1 6 Power 1 | . . 1 Propulsion 2 | . . 2 Utility 1 | . . 1 Weapon 3 | . 1 2 Highest Loss Streak 5 | . 1 5 To Critical Strikes . | . . . Average Backups 5 | 4 6 5 Power 1 | . 1 1 Propulsion 1 | 3 3 . Utility 1 | . . 2 Weapon . | . . . Tool/Special . | . . . Unused Backups 6 | . 4 2 Power 1 | . . 1 Propulsion 4 | . 4 . Utility 1 | . . 1 Weapon . | . . . Tool/Special . | . . . Average Slot Usage (%) 91 | . 96 86 Engine 11 | . 14 8 Treads 23 | . 28 18 Device 9 | . 11 7 Storage 12 | . 14 11 Processor 10 | . . 21 Energy Gun 9 | . 8 10 Ballistic Gun 8 | . 9 8 Launcher 4 | . 9 . Peak Build Rating 11 | 6 10 11 Average Rating 8 | 4 7 9 On Entrance 4 | . 6 8 Avg Prop Armor Cover (%) . | . . . Naked Turns . | . . . Heaviest Build 30 | 13 16 30 Greatest Support 40 | 40 40 40 Greatest Overweight (x) 1 | . . 1 Average Overweight (x) . | . . . Largest Inventory Capacity 15 | 8 8 15 Average Capacity 9 | 6 8 10 Most Carried 8 | 6 8 7 Average Carried 5 | 4 6 5 Final Capacity 15 | 8 8 15 Final Carried 7 | 6 7 5 Class Distribution -------------------- 100% | Mutant Dominant Class ---------------- Mutant | -10/Materials Mutant | -9/Materials Resources | -11 -10 -9 ----------- Run | Yrd Mat Mat Matter Collected 592 | 233 276 83 Remotely . | . . . Salvage Created 1223 | . 285 938 Parts 68 | . 21 47 Haulers Intercepted . | . . . Recyclers Shooed 5 | . . 5 Parts Field Recycled . | . . . Retrieved Matter . | . . . Parts Self-Destructed . | . . . Prevented . | . . . Parts Restored . | . . . Kills | -11 -10 -9 ------- Run | Yrd Mat Mat Combat Hostiles Destroyed 26 | . 10 16 Guns 19 | . 3 16 AOE 6 | . 6 . Classes Destroyed 8 | . 7 1 Worker 1 | . 1 . Builder 1 | . 1 . Tunneler 1 | . 1 . Recycler 6 | . 1 5 Watcher 6 | . 3 3 Swarmer 13 | . 6 7 Grunt 11 | . 4 7 Sentry 2 | . . 2 Best Kill Streak 7 | . 5 7 Combat Bots Only 5 | . 3 5 Max Kills in Single Turn 3 | . 3 1 Gunslinging . | . . . Exploded 3 | . 3 . Melee . | . . . Uniques/NPCs Destroyed . | . . . Combat | -11 -10 -9 -------- Run | Yrd Mat Mat Hostile Shots Fired 173 | . 30 143 Missed 66 | . 10 56 Hits 107 | . 20 87 Projectile 107 | . 20 87 Critical Strikes 3 | . 1 2 Damage Taken 1072 | . 254 818 Core 226 | . 41 185 Absorbed by Shields . | . . . Regen/Repaired (Parts) 80 | . . 80 Core Remaining (%) 91 | 100 83 . Volleys Fired 112 | . 35 77 Largest 2 | . 2 2 Hottest 80 | . 80 70 Shots Fired 153 | . 45 108 Gun 144 | . 36 108 Cannon . | . . . Launcher 9 | . 9 . Special . | . . . Kinetic 52 | . 18 34 Thermal 92 | . 18 74 Explosive 9 | . 9 . Electromagnetic . | . . . Robot Hit Streak 8 | . 8 7 Robot Miss Streak 3 | . 2 3 Penetration Max . | . . . Secondary Targets 2 | . . 2 Max Gunslinging Chain 1 | . . 1 Shots Hit Robots 96 | . 26 70 Core Hits 59 | . 25 34 Critical Kills . | . . . Critical Parts Destroyed . | . . . Critical Strikes 3 | . 2 1 Burn 3 | . 2 1 Melee Attacks 1 | . 1 . Impact . | . . . Slashing . | . . . Piercing . | . . . Sneak Attacks . | . . . Combat Hostiles . | . . . Follow-up Attacks . | . . . Damage Inflicted 1750 | . 807 943 Guns 1219 | . 277 942 Cannons . | . . . Explosions 530 | . 530 . Melee . | . . . Ramming 1 | . . 1 Kinetic 426 | . 136 290 Thermal 793 | . 141 652 Explosive 530 | . 530 . Electromagnetic . | . . . Impact . | . . . Slashing . | . . . Piercing . | . . . Highest Corruption . | . . . Average Corruption . | . . . Corruption Purged . | . . . Corruption Blocked . | . . . Overload Shots . | . . . Overflow Damage . | . . . Projectiles . | . . . Explosions . | . . . Melee . | . . . Knockbacks . | . . . Impact . | . . . Kinetic . | . . . Secondary . | . . . Self-Inflicted Damage 34 | . 34 . Shots 2 | . 2 . Rammed 1 | . . 1 Targets Rammed 1 | . . 1 Kicked . | . . . Crushed . | . . . Highest Temperature 72 | . 13 72 Average Temperature 25 | . 13 26 Received Heat Transfer 345 | . 114 231 Siege Activations . | . . . Martial Activations . | . . . Shielding Activations . | . . . Robots Disrupted . | . . . Combat Hostiles . | . . . Robots Corrupted . | . . . Combat Hostiles . | . . . Parts Fried . | . . . Impact Corruptions . | . . . Robots Melted 1 | . 1 . Combat Hostiles 1 | . 1 . Parts Melted 5 | . 1 4 Heat Transferred 2442 | . 555 1887 Parts Sabotaged . | . . . Parts Stolen . | . . . Parts Stripped . | . . . Power Chain Reactions . | . . . Alert | -11 -10 -9 ------- Run | Yrd Mat Mat Maximum Alert Level . | . . . Low Security (%) 100 | 100 100 100 Level 1 . | . . . Level 2 . | . . . Level 3 . | . . . Level 4 . | . . . Level 5 . | . . . High Security . | . . . Max Security . | . . . Peak Influence 185 | . 151 185 Initial 38 | . . 38 Average 77 | . 99 66 Influence Increases 801 | . 357 444 Destroy 0b10 Robot/C 520 | . 200 320 Destroy 0b10 Robot/NC 75 | . 35 40 Destroy Leader 102 | . 36 66 Successful Hack 8 | . 5 3 Disable Machine 15 | . . 15 Destroy Structure 66 | . 66 . Lose Combat Pursuer 15 | . 15 . Influence Decreases 636 | . 266 370 Entered New Map 53 | . . 53 Time Decay 513 | . 256 257 Lost Part 70 | . 10 60 Squads Dispatched 2 | . . 2 Investigation 1 | . . 1 Extermination . | . . . Reinforcement 1 | . . 1 Assault . | . . . Garrison . | . . . Intercept . | . . . Searches Triggered . | . . . Construction Impeded . | . . . Haulers Reinforced . | . . . Active Scanning Responses . | . . . Cargo Convoy Interrupts . | . . . Stealth | -11 -10 -9 --------- Run | Yrd Mat Mat Distress Signals 3 | . 1 2 Communications Jammed . | . . . Distress Signals . | . . . Times Spotted 42 | . 12 30 Peak Tracking Total 7 | . 3 7 Tactical Retreats 1 | . 1 . Traps | -11 -10 -9 ------- Run | Yrd Mat Mat Traps Triggered 2 | . 1 1 Indirectly . | . . . Trap Hack Attempts . | . . . Triggered . | . . . Disarmed 7 | . 6 1 Reprogrammed . | . . . Reused . | . . . Traps Extracted . | . . . Installed . | . . . Triggered . | . . . Machines | -11 -10 -9 ---------- Run | Yrd Mat Mat Machines Disabled 1 | . . 1 Max in Single Turn 1 | . . 1 Machines Repaired . | . . . Machines Dismantled . | . . . Machines Sabotaged . | . . . Overloaded Fab Kills . | . . . Hacking | -11 -10 -9 --------- Run | Yrd Mat Mat Machines Accessed 5 | . 3 2 Terminals 3 | . 2 1 Fabricators . | . . . Repair Stations 1 | . . 1 Recycling Units 1 | . 1 . Scanalyzers . | . . . Garrison Access . | . . . Total Hacks 14 | . 6 8 Successful 9 | . 3 6 Failed 5 | . 3 2 Catastrophic 1 | . . 1 Database Lockouts . | . . . Manual . | . . . Terminals 10 | . 4 6 Fabricators . | . . . Repair Stations 2 | . . 2 Recycling Units 2 | . 2 . Scanalyzers . | . . . Garrison Access . | . . . Terminal Hacks 6 | . 2 4 Record 3 | . . 3 Robot Analysis 1 | . 1 . Disarm Traps 2 | . 1 1 Fabricator Hacks . | . . . Repair Station Hacks 2 | . . 2 Scan Component 1 | . . 1 Repair 1 | . . 1 Recycling Unit Hacks 1 | . 1 . Recycle Component 1 | . 1 . Scanalyzer . | . . . Garrison Access Hacks . | . . . Unauthorized Hacks . | . . . Terminals . | . . . Fabricators . | . . . Repair Stations . | . . . Recycling Units . | . . . Scanalyzers . | . . . Garrison Access . | . . . Data Cores Recovered . | . . . Used . | . . . Hacking Detections 2 | . . 2 Full Trace Events . | . . . Feedback Events . | . . . Feedback Blocked . | . . . Robot Schematics Acquired . | . . . Robots Built . | . . . Authchips . | . . . Time . | . . . Total Robot Build Rating . | . . . Part Schematics Acquired . | . . . Parts Built . | . . . Authchips . | . . . Time . | . . . Total Part Build Rating . | . . . Part Studies Acquired . | . . . Parts Repaired 1 | . . 1 Time 26 | . . 26 Parts Recycled 1 | . 1 . Recycled Matter . | . . . Retrieved Matter . | . . . Retrieved Components . | . . . Parts Scanalyzed . | . . . Part Schematics Acquired . | . . . Parts Damaged . | . . . Bothacking | -11 -10 -9 ------------ Run | Yrd Mat Mat Used RIF Installer . | . . . Robots Hacked 1 | . 1 . Non-combat . | . . . Combat 1 | . 1 . Robot Hacks Applied 1 | . 1 . parse_system 1 | . 1 . Relay Couplers Released . | . . . Fabnet Peak Effective % . | . . . Robots Rewired . | . . . Allies Hacked . | . . . Hacks Repelled . | . . . Allies | -11 -10 -9 -------- Run | Yrd Mat Mat Total Allies . | . . . Largest Group . | . . . Highest-Rated Group . | . . . Highest-Rated Ally . | . . . Total Orders . | . . . Ally Attacks . | . . . Total Damage . | . . . Kills . | . . . Allies Corrupted . | . . . Allies Melted . | . . . Intel | -11 -10 -9 ------- Run | Yrd Mat Mat Active Infowar (turns) 761 | . 128 633 Terrain 537 | . 128 409 T.N.C. 633 | . . 633 Robot Analysis Total 1 | . 1 . Derelict Logs Recovered . | . . . Drone Launches . | . . . Drone Recoveries . | . . . Exploration | -11 -10 -9 ------------- Run | Yrd Mat Mat Turns Passed 1364 | 96 635 633 Spaces Moved 645 | 62 326 257 Core 17 | 17 . . Treads 628 | 45 326 257 Legs . | . . . Wheels . | . . . Hover . | . . . Flight . | . . . Fastest Speed 50 | 50 160 160 Average Speed 160 | 129 160 169 Slowest Speed 240 | 160 160 240 Overloaded Moves . | . . . Propulsion Burnouts . | . . . Robots Hopped . | . . . Potential Cave-ins . | . . . Cave-ins Triggered . | . . . Exploration Rate (%) 26 | 3 53 24 Regions Visited 2 Branch Regions . Pre-discovered Areas . | . . . Known Exits Taken . | . . . Unknown Exits Taken 2 | 1 1 . Scrap Searched . | . . . Spaces Dug . | . . . Terrain Destroyed 80 | . 80 . Melee . | . . . Projectile . | . . . AOE 80 | . 80 . Terrain Rammed . | . . . Walls Destroyed . | . . . Machines Disabled . | . . . Actions | -11 -10 -9 --------- Run | Yrd Mat Mat Total 815 | 77 392 346 Wait . | . . . Move 643 | 61 325 257 Hop . | . . . Pick Up 25 | 10 11 4 Fast Attach 5 | 2 3 . Attach 11 | 4 2 5 Detach . | . . . Swap 9 | . 8 1 Drop 8 | . 7 1 Fire 112 | . 35 77 Melee 1 | . 1 . Ram . | . . . Kick . | . . . Crush 1 | . . 1 Escape Stasis . | . . . Rewire . | . . . Trap . | . . . Miscellaneous . | . . . Route ------- -11/Scrapyard -10/Materials (discovered 2 exits: *Mat / [*Min]) -9/Materials History --------- Turn | Location | Event 3 | -11/Scrapyard | Discovered new exit (range 16) 97 | -11/Scrapyard | Entered Materials 343 | -10/Materials | Build established: Mutant 380 | -10/Materials | Discovered new exit (range 15) 670 | -10/Materials | Discovered new exit (range 15) 732 | -10/Materials | Entered another Materials area 732 | -9/Materials | Evolved 2 slots: Utility x2 860 | -9/Materials | Repaired Lgt. Treads 1271 | -9/Materials | Lost 5 parts (1p2n2w) 1365 | -9/Materials | Self-destructed Last Messages --------------- 01332_ An alarm sounds. 01332_ ALERT: Alarm triggered, dispatching investigation squad. 01332_ U-05 Engineer lays Concrete. 01332_ K-01 Serf collects debris. 01335_ U-05 Engineer lays Concrete. 01336_ K-01 Serf collects debris. 01336_ U-05 Engineer lays Concrete. 01338_ R-06 Scavenger collects Lgt. Ion Engine. 01339_ K-01 Serf collects debris. 01340_ U-05 Engineer lays Concrete. 01341_ R-06 Scavenger collects Hover Unit. 01341_ R-06 Scavenger destroyed. 01341_ K-01 Serf collects debris. 01349_ R-06 Scavenger destroyed. 01351_ K-01 Serf collects debris. 01363_ C-30 ARC bursts open, deploying its payload. 01363_ B-36 Bruiser unfolds itself. 01363_ G-34 Mercenary unfolds itself. 01365_ U-05 Engineer destroyed. 01365_ K-01 Serf collects debris. Map ----- +----------------------------------------------------+ | ?????????????????????????????????????????????????? | | ?????????????????????????????????????????????????? | | ?????????????????????????????????????????????????? | | ?????????????????????????????????????????????????? | | ?????????????????????????????????????????????????? | | ?????????????????????????????????????????????????? | | ?????????????????????????????????????????????????? | | ??????????????????????????????????a??????????????? | | ?????????????????????????????????????????????????? | | ???????????????????????????????? ????????????????? | | ????????????????????????????? "????????????????? | | ???????????????????????????? ""???????????????? | | ???????????????????????????? """ ???????????? | | ?????###+##???????????????? ? ????????? | | ????? ???????????????a ??????????? | | ?????? ??????????????? ??????????? | | ?????? ###########+### ?? ????? ?? | | ????????# [= ??????????? | | ????????# = %=%!g ???????????? | | ????????# !g! %g""" """ ! ? ???? ????? | | ????????# g!! == """ """ =%#???????????? | | ????????# !!% *""" """ ####????????? | | ????????# % %%% k =%""" """ !###??????? | | ????????# % ! "" """ % !#??#????? | | ????????# % #???#???? | | ????????# ! k @ % % % !##??????? | | ????????# =%= !#????#??? | | ????????+ % *r b % ##???????? | | ????????# %####????????? | | ????????# g##??????????? | | ?????"" + #########??? | | ???? ### ###### ?? | | ??? ???# ?????# ####+##?#?#? | | ???#+#????# ?????########% #### ##?????????? | | ?????#????#+###???????##???# #??# #? ??? ?#??? | | ??#????????????????????????# #??# ##????? ???? | | ????????????????????######## #??# ##??""?????? | | ????????????????????# a #??# #?? ????? ?? | | ???????? ???? ??????# #??# #? ????????? | | ???????????########## #??# #??????????? | | ???????????# # ###/####?## #???????#??? | | ?? ??#?????# """ # # #?## #??????????? | | ???????????# """ # # #??# ##????????#? | | ????????#?## """ # # " " #### #?? ??????? | | ???????#???# # # "Y" + #??? ?????? | | ????????#??# """ + # """ #### T #?????????? | | ?????#?????# """ # # #??# ##????????? | | ##########?# """ # ############ ##?????????? | | #??# # # ##a #?? ???????? | | ############# # | """ ##% #??????????? | +----------------------------------------------------+ Best States ------------- Heat Dissipation 39 Energy Generation 10 Energy Capacity 250 Matter Stores 300 Matter Capacity 300 Sight Range 16 Terrain Scan Range 14 Terrain Scan Density 10 Evasion (%) 50 Targeting Accuracy 6 Recoil Reduction 2 Item Schematics ----------------- None Robot Schematics ------------------ None Fabricated ------------ Nothing Repaired ---------- Lgt. Treads | 42% | -9/Materials Studied --------- None Alien Tech Used ----------------- None Achievements -------------- Ghost 'Em Hey, That's Mine! It's Just You Challenges ------------ None Game ------ Seed WarpNeutrinoCartridge Manual? 0 Play Time 00:20:07 Cumulative 5.1 hours Start 2026.08.18 @ 15:25:22 End 2026.08.18 @ 15:56:34 Sessions 1 Manual Loads 0 Difficulty Rogue Special Mode None Game No. 3 Rogue 2 Adventurer 1 Explorer 0 Win Type - Total 0 Types 0/0/0/0/0/0/0/0/0/0 Lore% 1 Gallery% 5 Achievement% 6 Wizard Run 0 Options --------- Layout 0 ASCII 0 Keyboard 0 Movement Mouse Keybinds 0 Fullscreen 2 Font 18/SmallcapsGlow Map View 76x50 Zoom Use 0% Tactical HUD 1 Map Filters NONE Filters NONE Steam 1 RUN: 29db1b24-580b-4fcd-80c1-1355cfc7a28e